Cogmind - Beta 15 @@@ ROGUE MODE // 2025.05.08 @ 03:07:34 Player: Big Pilgrim Result: Destroyed by P-60 Hacker with Shock Rifle Performance ------------- Evolutions (2) 1000 Regions Visited (5) 1000 Robots Destroyed (25) 125 Value Destroyed (923) 923 Prototype IDs (0) 0 Alien Tech Used (0) 0 Bonus (268) 268 TOTAL SCORE: 3316 Bonus ------- Follower Combat Kills 68 Entered Garrisons 200 Cogmind --------- Core Integrity 0/550 Matter 214/300 Energy 100/100 System Corruption 15% Temperature Cool (0) Movement Core (400) Ox7 Location -8/Garrison Parts ------- > --- POWER (1) -------- (None) > --- PROPULSION (4) --- (None) > --- UTILITY (4) ------ Large Storage Unit Signal Interpreter > --- WEAPON (2) ------- Katana > --- INVENTORY (15) --- Ion Engine Light Ion Engine Small Storage Unit Large Storage Unit Advanced Visual Processing Unit Core Shielding Light Armor Plating Beamcaster Beam Cannon Heavy Particle Cannon Heavy Assault Rifle Heavy Assault Rifle Mining Laser Hammer Peak State ------------ > --- POWER ------------ Light Nuclear Core > --- PROPULSION ------- Aluminum Leg Aluminum Leg Improved Aluminum Leg > --- UTILITY ---------- Large Storage Unit Sensor Array Signal Interpreter Hardened Medium Armor Plating > --- WEAPON ----------- Grenade Launcher Katana > --- INVENTORY -------- Ion Engine Light Ion Engine Small Storage Unit Large Storage Unit Advanced Visual Processing Unit Light Armor Plating Medium Laser Medium Laser Particle Gun Beam Cannon Beam Cannon Heavy Particle Cannon Heavy Assault Rifle Heavy Assault Rifle Mining Laser [Rating: 19] Favorites ----------- Power Ion Engine Engine Ion Engine Power Core Light Nuclear Core Propulsion Aluminum Leg Leg Aluminum Leg Utility Signal Interpreter Device Sensor Array Storage Large Storage Unit Processor Signal Interpreter Protection Hardened Medium Armor Plating Weapon Heavy Assault Rifle Energy Cannon Beam Cannon Ballistic Gun Heavy Assault Rifle Launcher Grenade Launcher Slashing Weapon Katana Build | -11 -10 -9 -9 -8 -8 ------- Run | Yrd Mat Mat Min Mat Gar Slots Evolved 4 | . . 2 . 2 . Power . | . . . . . . Propulsion 2 | . . 2 . . . Utility 2 | . . . . 2 . Weapon . | . . . . . . Parts Attached 26 | 6 5 6 . 4 5 Power 5 | 1 1 1 . 1 1 Engine 4 | 1 1 1 . . 1 Core 1 | . . . . 1 . Reactor . | . . . . . . Propulsion 7 | 2 . 3 . 1 1 Treads . | . . . . . . Leg 7 | 2 . 3 . 1 1 Wheel . | . . . . . . Hover . | . . . . . . Flight . | . . . . . . Utility 5 | 1 3 . . 1 . Device 1 | . 1 . . . . Storage 2 | 1 1 . . . . Processor 1 | . 1 . . . . Hackware . | . . . . . . Protection 1 | . . . . 1 . Artifact . | . . . . . . Weapon 9 | 2 1 2 . 1 3 Energy Gun . | . . . . . . Energy Cannon 1 | . 1 . . . . Ballistic Gun 6 | 2 . 2 . 1 1 Ballistic Cannon . | . . . . . . Launcher 1 | . . . . . 1 Special Weapon . | . . . . . . Impact Weapon . | . . . . . . Slashing Weapon 1 | . . . . . 1 Piercing Weapon . | . . . . . . Special Melee Weapon . | . . . . . . Unidentified Prototypes . | . . . . . . Parts Lost 15 | . . 1 3 . 11 Power 4 | . . 1 1 . 2 Propulsion 6 | . . . 2 . 4 Utility 2 | . . . . . 2 Weapon 3 | . . . . . 3 Highest Loss Streak 7 | . . 1 3 . 7 To Critical Strikes . | . . . . . . Average Backups 11 | 2 7 11 15 10 14 Power 1 | . . . 1 1 2 Propulsion 1 | 1 3 1 2 . . Utility 3 | . 1 3 4 2 4 Weapon 5 | . 2 6 8 7 7 Tool/Special . | . . . . . . Unused Backups 22 | . 5 1 1 1 14 Power 2 | . . . . . 2 Propulsion 4 | . 3 . . 1 . Utility 6 | . 1 1 . . 4 Weapon 10 | . 1 . 1 . 8 Tool/Special . | . . . . . . Average Slot Usage (%) 84 | . 89 97 100 80 78 Engine 5 | . 14 9 11 . . Core 1 | . . . . . 3 Leg 26 | . 27 43 44 27 22 Device 4 | . . . . 8 8 Storage 10 | . 14 11 11 9 9 Processor 7 | . 4 11 11 9 9 Protection 4 | . . . . 8 8 Energy Cannon 1 | . 3 5 . . . Ballistic Gun 15 | . 24 16 22 18 8 Launcher 1 | . . . . . 3 Slashing Weapon 2 | . . . . . 5 Peak Build Rating 19 | 6 8 12 12 17 19 Average Rating 11 | 4 6 10 11 14 15 On Entrance 8 | . 6 8 12 9 17 Naked Turns . | . . . . . . Heaviest Build 40 | 13 30 31 31 40 40 Greatest Support 40 | 20 20 40 40 30 33 Greatest Overweight (x) 9 | . 1 . 1 1 9 Average Overweight (x) . | . . . . 1 1 Largest Inventory Capacity 15 | 8 15 15 15 15 15 Average Capacity 12 | 6 9 15 15 15 15 Most Carried 15 | 4 11 15 15 14 15 Average Carried 11 | 2 7 11 14 10 14 Final Capacity 15 | 8 15 15 15 15 15 Final Carried 15 | 4 11 15 15 12 14 Class Distribution -------------------- 78% | Mutant 21% | Scavenger-Mutant Dominant Class ---------------- Mutant | -10/Materials Mutant | -9/Materials Mutant | -9/Mines Mutant | -8/Materials Mutant | -8/Garrison Resources | -11 -10 -9 -9 -8 -8 ----------- Run | Yrd Mat Mat Min Mat Gar Matter Collected 790 | 126 86 213 20 99 246 Remotely . | . . . . . . Salvage Created 764 | . 141 213 . 99 311 Parts 48 | . 5 11 . 3 29 Haulers Intercepted . | . . . . . . Recyclers Shooed 1 | . 1 . . . . Parts Field Recycled . | . . . . . . Retrieved Matter . | . . . . . . Parts Self-Destructed . | . . . . . . Prevented . | . . . . . . Kills | -11 -10 -9 -9 -8 -8 ------- Run | Yrd Mat Mat Min Mat Gar Combat Hostiles Destroyed 24 | . 5 3 . 2 14 Melee 1 | . . . . . 1 Guns 14 | . 5 3 . 2 4 AOE 9 | . . . . . 9 Classes Destroyed 6 | . 2 1 . . 3 Recycler 1 | . . 1 . . . Swarmer 10 | . 3 . . . 7 Grunt 10 | . 2 3 . 2 3 Brawler 1 | . . . . . 1 Duelist 1 | . . . . . 1 Sentry 2 | . . . . . 2 Best Kill Streak 4 | . 3 4 . 2 4 Combat Bots Only 4 | . 3 3 . 2 4 Max Kills in Single Turn 4 | . 1 1 . 1 4 Gunslinging . | . . . . . . Exploded 4 | . . . . . 4 Melee 1 | . . . . . 1 Uniques/NPCs Destroyed . | . . . . . . Combat | -11 -10 -9 -9 -8 -8 -------- Run | Yrd Mat Mat Min Mat Gar Hostile Shots Fired 259 | . 37 42 18 14 148 Missed 95 | . 12 21 6 5 51 Hits 164 | . 25 21 12 9 97 Projectile 164 | . 25 21 12 9 97 AOE 10 | . . . 10 . . Critical Strikes 9 | . . . . . 9 Damage Taken 2587 | . 244 221 446 134 1542 Core 753 | . 84 45 74 13 537 Absorbed by Shields 10 | . . . . . 10 Core Remaining (%) 78 | 100 66 . 70 . . Volleys Fired 65 | . 16 11 . 9 29 Largest 2 | . 2 2 . 2 2 Hottest 53 | . 40 46 . 46 53 Shots Fired 118 | . 32 22 . 18 46 Gun 99 | . 32 22 . 18 27 Cannon . | . . . . . . Launcher 19 | . . . . . 19 Special . | . . . . . . Kinetic 99 | . 32 22 . 18 27 Thermal . | . . . . . . Explosive 19 | . . . . . 19 Electromagnetic . | . . . . . . Robot Hit Streak 10 | . 5 7 . 10 5 Robot Miss Streak 4 | . 2 4 . 2 4 Penetration Max . | . . . . . . Secondary Targets 2 | . . 2 . . . Max Gunslinging Chain 1 | . . 1 . . . Shots Hit Robots 72 | . 18 12 . 14 28 Core Hits 41 | . 8 6 . 5 22 Critical Kills . | . . . . . . Critical Parts Destroyed . | . . . . . . Critical Strikes . | . . . . . . Melee Attacks 6 | . . . . . 6 Impact . | . . . . . . Slashing 6 | . . . . . 6 Piercing . | . . . . . . Sneak Attacks . | . . . . . . Combat Hostiles . | . . . . . . Follow-up Attacks . | . . . . . . Damage Inflicted 1829 | . 210 191 . 203 1225 Guns 894 | . 209 191 . 203 291 Cannons . | . . . . . . Explosions 809 | . . . . . 809 Melee 125 | . . . . . 125 Ramming 1 | . 1 . . . . Kinetic 894 | . 209 191 . 203 291 Thermal . | . . . . . . Explosive 809 | . . . . . 809 Electromagnetic . | . . . . . . Impact . | . . . . . . Slashing 125 | . . . . . 125 Piercing . | . . . . . . Highest Corruption 15 | . . . . . 15 Average Corruption 9 | . . . . . 9 Corruption Purged . | . . . . . . Corruption Blocked . | . . . . . . Effects 5 | . . . . . 5 Message Errors 3 | . . . . . 3 Heat Flow Errors 1 | . . . . . 1 Data Loss (minor) 1 | . . . . . 1 Overload Shots . | . . . . . . Overflow Damage 66 | . . . . . 66 Projectiles . | . . . . . . Explosions 58 | . . . . . 58 Melee 8 | . . . . . 8 Knockbacks . | . . . . . . Impact . | . . . . . . Kinetic . | . . . . . . Secondary . | . . . . . . Self-Inflicted Damage 142 | . . . . . 142 Shots 5 | . . . . . 5 Rammed . | . . . . . . Targets Rammed 1 | . 1 . . . . Kicked 1 | . 1 . . . . Crushed . | . . . . . . Highest Temperature 206 | . 6 7 . . 206 Average Temperature 55 | . 6 3 . . 61 Received Heat Transfer 414 | . 48 96 18 81 171 Siege Activations . | . . . . . . Martial Activations . | . . . . . . Shielding Activations . | . . . . . . Robots Disrupted . | . . . . . . Combat Hostiles . | . . . . . . Robots Corrupted . | . . . . . . Combat Hostiles . | . . . . . . Parts Fried . | . . . . . . Impact Corruptions . | . . . . . . Robots Melted . | . . . . . . Combat Hostiles . | . . . . . . Parts Melted . | . . . . . . Heat Transferred . | . . . . . . Parts Sabotaged . | . . . . . . Parts Stolen . | . . . . . . Parts Stripped . | . . . . . . Power Chain Reactions . | . . . . . . Alert | -11 -10 -9 -9 -8 -8 ------- Run | Yrd Mat Mat Min Mat Gar Maximum Alert Level 2 | . . . . . 2 Low Security (%) 60 | 100 100 100 100 100 14 Level 1 16 | . . . . . 35 Level 2 23 | . . . . . 50 Level 3 . | . . . . . . Level 4 . | . . . . . . Level 5 . | . . . . . . High Security . | . . . . . . Max Security . | . . . . . . Peak Influence 498 | . 60 60 15 40 498 Initial 15 | . . . 15 . 6 Average 168 | . 8 23 11 12 350 Influence Increases 792 | . 120 90 . 50 532 Destroy 0b10 Robot/C 520 | . 100 60 . 40 320 Destroy 0b10 Robot/NC 5 | . . 5 . . . Destroy Leader 60 | . 20 10 . 10 20 Allied During Kill 2 | . . . . . 2 Successful Hack 23 | . . . . . 23 Disable Machine 15 | . . . . . 15 Anti-Garrison Action 100 | . . . . . 100 Destroy Structure 52 | . . . . . 52 Lose Combat Pursuer 15 | . . 15 . . . Influence Decreases 384 | . 120 50 40 40 134 Entered New Map 29 | . . . 25 . 4 Time Decay 210 | . 120 40 10 40 . Lost Part 125 | . . 10 5 . 110 Lost Ally 20 | . . . . . 20 Squads Dispatched 3 | . . 2 . 1 . Investigation 2 | . . 1 . 1 . Extermination . | . . . . . . Reinforcement 1 | . . 1 . . . Assault . | . . . . . . Garrison . | . . . . . . Intercept . | . . . . . . Searches Triggered . | . . . . . . Construction Impeded . | . . . . . . Haulers Reinforced . | . . . . . . Active Scanning Responses . | . . . . . . Cargo Convoy Interrupts . | . . . . . . Stealth | -11 -10 -9 -9 -8 -8 --------- Run | Yrd Mat Mat Min Mat Gar Distress Signals 1 | . . 1 . . . Communications Jammed . | . . . . . . Distress Signals . | . . . . . . Times Spotted 62 | . 11 11 19 2 19 Peak Tracking Total 16 | . 4 5 16 2 4 Tactical Retreats 1 | . . 1 . . . Traps | -11 -10 -9 -9 -8 -8 ------- Run | Yrd Mat Mat Min Mat Gar Traps Triggered 5 | . 1 1 . 1 2 Indirectly . | . . . . . . Trap Hack Attempts . | . . . . . . Triggered . | . . . . . . Disarmed . | . . . . . . Reprogrammed . | . . . . . . Reused . | . . . . . . Traps Extracted . | . . . . . . Installed . | . . . . . . Triggered . | . . . . . . Machines | -11 -10 -9 -9 -8 -8 ---------- Run | Yrd Mat Mat Min Mat Gar Machines Disabled 3 | . . . . . 3 Max in Single Turn 1 | . . . . . 1 Garrison Relay 1 | . . . . . 1 Machines Repaired . | . . . . . . Machines Dismantled . | . . . . . . Machines Sabotaged . | . . . . . . Overloaded Fab Kills . | . . . . . . Hacking | -11 -10 -9 -9 -8 -8 --------- Run | Yrd Mat Mat Min Mat Gar Machines Accessed 6 | . 2 . . 2 2 Terminals 4 | . 1 . . 1 2 Fabricators . | . . . . . . Repair Stations . | . . . . . . Recycling Units 1 | . 1 . . . . Scanalyzers . | . . . . . . Garrison Access 1 | . . . . 1 . Total Hacks 9 | . 3 . . 2 4 Successful 4 | . . . . 2 2 Failed 5 | . 3 . . . 2 Catastrophic 2 | . 1 . . . 1 Database Lockouts . | . . . . . . Manual 2 | . 2 . . . . Terminals 7 | . 2 . . 1 4 Fabricators . | . . . . . . Repair Stations . | . . . . . . Recycling Units 1 | . 1 . . . . Scanalyzers . | . . . . . . Garrison Access 1 | . . . . 1 . Terminal Hacks 3 | . . . . 1 2 Open Door 1 | . . . . . 1 Branch Access Points 1 | . . . . 1 . Security Stations 1 | . . . . . 1 Fabricator Hacks . | . . . . . . Repair Station Hacks . | . . . . . . Recycling Unit Hacks . | . . . . . . Scanalyzer . | . . . . . . Garrison Access Hacks 1 | . . . . 1 . Unlock Access 1 | . . . . 1 . Unauthorized Hacks . | . . . . . . Terminals . | . . . . . . Fabricators . | . . . . . . Repair Stations . | . . . . . . Recycling Units . | . . . . . . Scanalyzers . | . . . . . . Garrison Access . | . . . . . . Data Cores Recovered . | . . . . . . Used . | . . . . . . Hacking Detections 6 | . 3 . . 1 2 Full Trace Events 1 | . . . . . 1 Feedback Events . | . . . . . . Feedback Blocked . | . . . . . . Robot Schematics Acquired . | . . . . . . Robots Built . | . . . . . . Authchips . | . . . . . . Time . | . . . . . . Total Robot Build Rating . | . . . . . . Part Schematics Acquired . | . . . . . . Parts Built . | . . . . . . Authchips . | . . . . . . Time . | . . . . . . Total Part Build Rating . | . . . . . . Parts Repaired . | . . . . . . Time . | . . . . . . Parts Recycled . | . . . . . . Recycled Matter . | . . . . . . Retrieved Matter . | . . . . . . Retrieved Components . | . . . . . . Parts Scanalyzed . | . . . . . . Part Schematics Acquired . | . . . . . . Parts Damaged . | . . . . . . Bothacking | -11 -10 -9 -9 -8 -8 ------------ Run | Yrd Mat Mat Min Mat Gar Used RIF Installer . | . . . . . . Robots Hacked . | . . . . . . Non-combat . | . . . . . . Combat . | . . . . . . Robot Hacks Applied . | . . . . . . Relay Couplers Released 4 | . . . . . 4 Machine Destruction 4 | . . . . . 4 Fabnet Peak Effective % . | . . . . . . Robots Rewired . | . . . . . . Allies Hacked . | . . . . . . Hacks Repelled . | . . . . . . Allies | -11 -10 -9 -9 -8 -8 -------- Run | Yrd Mat Mat Min Mat Gar Total Allies 2 | . . . 1 . 1 Largest Group 1 | . . . 1 . 1 Highest-Rated Group 31 | . . . 31 . 31 Highest-Rated Ally 31 | . . . 31 . 31 Total Orders . | . . . . . . Ally Attacks 22 | . . . 8 . 14 Total Damage 260 | . . . 86 . 174 Kills 3 | . . . 1 . 2 Allies Corrupted . | . . . . . . Allies Melted . | . . . . . . Intel | -11 -10 -9 -9 -8 -8 ------- Run | Yrd Mat Mat Min Mat Gar Active Infowar (turns) 1100 | . 1 . . 159 940 Sensors 1100 | . 1 . . 159 940 Robot Analysis Total . | . . . . . . Derelict Logs Recovered . | . . . . . . Drone Launches . | . . . . . . Drone Recoveries . | . . . . . . Exploration | -11 -10 -9 -9 -8 -8 ------------- Run | Yrd Mat Mat Min Mat Gar Turns Passed 2156 | 68 737 159 29 162 1001 Spaces Moved 1168 | 51 499 90 23 66 439 Core 28 | 9 . . . . 19 Treads . | . . . . . . Legs 1140 | 42 499 90 23 66 420 Wheels . | . . . . . . Hover . | . . . . . . Flight . | . . . . . . Fastest Speed 50 | 50 120 120 120 190 120 Average Speed 157 | 107 130 120 126 190 199 Slowest Speed 500 | 120 190 120 190 190 500 Overloaded Moves . | . . . . . . Propulsion Burnouts . | . . . . . . Robots Hopped . | . . . . . . Potential Cave-ins . | . . . . . . Cave-ins Triggered . | . . . . . . Exploration Rate (%) 23 | 3 58 11 12 9 48 Regions Visited 5 Branch Regions 1 Pre-discovered Areas . | . . . . . . Known Exits Taken 4 | . 1 1 1 1 . Unknown Exits Taken 1 | 1 . . . . . Scrap Searched . | . . . . . . Spaces Dug . | . . . . . . Terrain Destroyed 54 | . . . . . 54 Melee . | . . . . . . Projectile . | . . . . . . AOE 54 | . . . . . 54 Terrain Rammed . | . . . . . . Walls Destroyed . | . . . . . . Machines Disabled . | . . . . . . Actions | -11 -10 -9 -9 -8 -8 --------- Run | Yrd Mat Mat Min Mat Gar Total 1367 | 62 558 119 24 86 518 Wait 42 | . 11 2 . 3 26 Move 1160 | 50 498 89 22 65 436 Hop . | . . . . . . Pick Up 40 | 6 17 7 1 2 7 Fast Attach 15 | 4 4 3 . 1 3 Attach 10 | 2 1 2 . 4 1 Detach . | . . . . . . Swap 5 | . 3 1 . . 1 Drop 18 | . 7 4 1 2 4 Fire 65 | . 16 11 . 9 29 Melee 6 | . . . . . 6 Ram . | . . . . . . Kick 1 | . 1 . . . . Crush . | . . . . . . Escape Stasis 5 | . . . . . 5 Rewire . | . . . . . . Trap . | . . . . . . Miscellaneous . | . . . . . . Route ------- -11/Scrapyard -10/Materials (discovered 2 exits: *Mat / [*Min]) -9/Materials -9/Mines -8/Materials (discovered 2 exits: Sto / Gar) -8/Garrison (discovered 1 exit: *Mat) History --------- Turn | Location | Event 4 | -11/Scrapyard | Discovered new exit (range 14) 69 | -11/Scrapyard | Entered Materials 316 | -10/Materials | Build established: Mutant 649 | -10/Materials | Discovered new exit (range 10) 659 | -10/Materials | Identified exit to Materials 723 | -10/Materials | Discovered new exit (range 11) 806 | -10/Materials | Entered another Materials area 806 | -9/Materials | Evolved 2 slots: Propulsion x2 959 | -9/Materials | Discovered new exit (range 6) 964 | -9/Materials | Identified exit to Mines 965 | -9/Materials | Entered Mines 966 | -9/Mines | Assembled infested the area 968 | -9/Mines | Received a Mining Laser from a helpful Derelict 972 | -9/Mines | Assisted by a Guerilla fighting off Assembled 983 | -9/Mines | Discovered new exit (range 13) 992 | -9/Mines | Identified exit to Materials 994 | -9/Mines | Entered Materials 994 | -8/Materials | Evolved 2 slots: Utility x2 1020 | -8/Materials | Identified exit to Storage 1023 | -8/Materials | Lost 3 parts (1p2n) 1109 | -8/Materials | Identified exit to Garrison 1156 | -8/Materials | Entered Garrison 1234 | -8/Garrison | Triggered checkpoint 1268 | -8/Garrison | Triggered checkpoint 1354 | -8/Garrison | Triggered checkpoint 1410 | -8/Garrison | Discovered new exit (range 12) 1425 | -8/Garrison | Learned Materials security intel 1451 | -8/Garrison | Identified exit to Materials 1453 | -8/Garrison | Attempted to access garrison exit controls, blocked by remote lockdown 1540 | -8/Garrison | Triggered checkpoint 1584 | -8/Garrison | Garrison Relay disabled 1664 | -8/Garrison | Rescued a captive Derelict 1943 | -8/Garrison | Build established: Scavenger-Mutant 2100 | -8/Garrison | Core integrity fell below 50% 2113 | -8/Garrison | System corruption reached 10% 2127 | -8/Garrison | Lost 7 parts (1p3n2u1w) 2131 | -8/Garrison | Core integrity fell below 20% 2157 | -8/Garrison | Destroyed by P-60 Hacker with Shock Rifle Last Messages --------------- 01664_ TK-EGL(g): "Ambushed, captured, tortured, and now freed! " 01694_ Dropped Beam Cannon. 01696_ Acquired Hammer. 01766_ Y-45 Defender destroyed. 02051_ Hrd. Medium Armor Plating destroyed. 02061_ System corrupted: Component data lost. 02061_ Aluminum Leg destroyed. 02063_ Hvy. Assault Rifle destroyed. 02064_ Destroyed Shock Rifle. 02074_ Acquired 60 matter. 02076_ Aluminum Leg destroyed. 02076_ Dropped Particle Gun. 02076_ Acquired Beamcaster. 02078_ AI9D4CEDQDQY>IIFROB6N3GFX 02078_ Imp. Aluminum Leg destroyed. 02093_ KA&Q|JFW380UB|M7HX/BRG2FILO1 02096_ Imp. Ion Engine destroyed. 02096_ Sensor Array destroyed. 02111_ Y9ZO%KGHRF5#JI%QFK&CR&62 02134_ System corrupted: Heat flow error (+237). Map ----- +----------------------------------------------------+ | | | | | | | | | | | | | | | | | | | | | | | | | ?????????????????????????????????????????????????? | | ?????????????????????????????????????????????????? | | ?????????????????????????????????????????????????? | | ?????????????????????????????????????????????????? | | ?????????????????????????????????????????????????? | | ?????????????????????????????????????????????????? | | ????????????????????????###??????????????????????? | | ????????????????????????# #??????????????????????? | | ????????????????????????# #??????????????????????? | | ????????????????????????# #??????????????????????? | | ????????????????????????# #??????????????????????? | | ????????????????????????# #??????????????????????? | | ????????????????????????# #??????????????????????? | | ??????????????????##????#@#??????????????????????? | | ??????????????????#"????# #??????????????????????? | | ??????????????#####"##### #??????????????????????? | | ??????????????#""""" # #??????????????????????? | | ??????????????#" " # #??????????????????????? | | ??????????????#" # #??????????????????????? | | ??????????????#" " # #??????????????????????? | | ??????????????#"" """ #[#??????????????????????? | | ##????????????# " #p#??????????????????????? | | #????????????# #p#??????????????????????? | | #????????????# !*#??????????????????????? | | #????????????# # #??????????????????????? | | ##???????????##### ##### ###????????????????????? | | #???????????????# ????# #??#?????????????????? | | ###???????????????# ????# ###? #?????????????????? | | #?????????????????# ????# #??? #?????????????????? | | ##????????????????# ????# #?? #?????????????????? | | #???????????????########+### ##????????????????? | | ##???????????????# #????????????????? | | ###########??????# #????????????????? | | #??????# ########### #????????????????? | | #??????# #???????????#????????????????? | | ######## #??????# #????????????????????????????? | | ###????# #??????# #????????????????????????????? | | # ##### #??????# #????????????????????????????? | +----------------------------------------------------+ Best States ------------- Heat Dissipation 31 Energy Generation 14 Energy Capacity 265 Matter Stores 234 Matter Capacity 300 Sight Range 16 Robot Scan Range 14 Terrain Scan Density 10 Armor Coverage 225 Evasion (%) 55 Item Schematics ----------------- None Robot Schematics ------------------ None Fabricated ------------ Nothing Repaired ---------- Nothing Alien Tech Used ----------------- None Achievements -------------- I Survived The Infestation Short-term Sacrifices Challenges ------------ None Game ------ Seed DeepThrusterTether Manual? 0 Play Time 00:27:19 Cumulative 13.1 hours Start 2025.05.08 @ 02:43:18 End 2025.05.08 @ 03:07:34 Sessions 1 Manual Loads 0 Difficulty Rogue Special Mode None Game No. 15 Rogue 15 Adventurer 0 Explorer 0 Win Type - Total 0 Types 0/0/0/0/0/0/0/0/0/0 Lore% 9 Gallery% 15 Achievement% 15 Wizard Run 0 Options --------- Layout 0 ASCII 0 Keyboard 0 Movement Mouse Keybinds 0 Fullscreen 2 Font 24/Terminus Map View 38x25 Zoom Use 72% Tactical HUD 1 Map Filters NONE Filters NONE Steam 1 RUN: 85f2e249-ebe5-4c97-af7b-badf97c02077